[Event "*** Titled Tuesday Blitz"]
[Site "Chess.com"]
[Date "2020.04.28"]
[Round "4"]
[White "saikrishnaReturns"]
[Black "almo64"]
[Result "0-1"]
[WhiteElo "2640"]
[BlackElo "2820"]
[TimeControl "180+1"]
[EndTime "10:36:44 PDT"]
[Termination "almo64 won by resignation"]

1. e4 {[%clk 0:03:00.9]} 1... c5 {[%clk 0:02:41.2]} 2. Nf3 {[%clk 0:03:00.1]}
2... Nc6 {[%clk 0:02:40.9]} 3. Nc3 {[%clk 0:02:57.7]} 3... g6 {[%clk 0:02:40.1]}
4. h4 {[%clk 0:02:47.8]} 4... Nf6 {[%clk 0:02:30.8]} 5. h5 {[%clk 0:02:43.2]}
5... Nxh5 {[%clk 0:02:30.1]} 6. Rxh5 {[%clk 0:02:41.6]} 6... gxh5 {[%clk
0:02:30.1]} 7. Ng5 {[%clk 0:02:41.6]} 7... e6 {[%clk 0:02:24.9]} 8. Qxh5 {[%clk
0:02:40.2]} 8... Qf6 {[%clk 0:02:25.2]} 9. Nb5 {[%clk 0:02:39]} 9... h6 {[%clk
0:02:13]} 10. Nc7+ {[%clk 0:02:27.8]} 10... Kd8 {[%clk 0:02:12.3]} 11. Nxf7+
{[%clk 0:02:02.6]} 11... Kxc7 {[%clk 0:02:11.7]} 12. Nxh8 {[%clk 0:02:02.6]}
12... Qxh8 {[%clk 0:02:11.2]} 13. c3 {[%clk 0:01:55.8]} 13... d6 {[%clk
0:02:08]} 14. Bb5 {[%clk 0:01:46.9]} 14... Bd7 {[%clk 0:02:07.2]} 15. d4 {[%clk
0:01:29.7]} 15... cxd4 {[%clk 0:02:05.8]} 16. cxd4 {[%clk 0:01:21.7]} 16... Qxd4
{[%clk 0:02:03.6]} 17. Bxc6 {[%clk 0:01:19.6]} 17... bxc6 {[%clk 0:01:57.9]} 0-1

[Event "*** Titled Tuesday Blitz"]
[Site "Chess.com"]
[Date "2020.04.28"]
[Round "4"]
[White "lifeissofun"]
[Black "josiwales"]
[Result "0-1"]
[WhiteElo "2355"]
[BlackElo "2604"]
[TimeControl "180+1"]
[EndTime "10:36:51 PDT"]
[Termination "josiwales won by resignation"]

1. e4 {[%clk 0:03:00.9]} 1... c5 {[%clk 0:02:59.9]} 2. Nf3 {[%clk 0:03:01.5]}
2... Nc6 {[%clk 0:03:00.2]} 3. d4 {[%clk 0:03:02.1]} 3... cxd4 {[%clk
0:03:01.1]} 4. Nxd4 {[%clk 0:03:02.8]} 4... Nf6 {[%clk 0:03:01.9]} 5. Nc3 {[%clk
0:03:03]} 5... e5 {[%clk 0:03:02.6]} 6. Ndb5 {[%clk 0:03:02.3]} 6... d6 {[%clk
0:03:03.2]} 7. Nd5 {[%clk 0:03:02.4]} 7... Nxd5 {[%clk 0:03:03.2]} 8. exd5
{[%clk 0:03:03.3]} 8... Ne7 {[%clk 0:03:04.1]} 9. a4 {[%clk 0:03:03.7]} 9... a6
{[%clk 0:03:03]} 10. Na3 {[%clk 0:03:03.7]} 10... Qa5+ {[%clk 0:03:02.7]} 11. c3
{[%clk 0:03:00.3]} 11... Qxd5 {[%clk 0:03:01]} 12. Qc2 {[%clk 0:02:51.2]} 12...
Bf5 {[%clk 0:02:58.2]} 13. Qd2 {[%clk 0:02:42]} 13... Qxd2+ {[%clk 0:02:29.3]}
14. Bxd2 {[%clk 0:02:42.9]} 14... Nc6 {[%clk 0:02:29.8]} 15. Bc4 {[%clk
0:02:35]} 15... Be7 {[%clk 0:02:19.1]} 16. O-O-O {[%clk 0:02:32.5]} 16... O-O
{[%clk 0:02:14.7]} 17. f3 {[%clk 0:02:26.5]} 17... Rac8 {[%clk 0:02:11.2]} 18.
g4 {[%clk 0:02:24.2]} 18... Bg6 {[%clk 0:02:11.2]} 19. h4 {[%clk 0:02:20.5]}
19... h6 {[%clk 0:02:11.3]} 20. g5 {[%clk 0:02:18]} 20... h5 {[%clk 0:02:11]}
21. f4 {[%clk 0:02:12.7]} 21... d5 {[%clk 0:01:57.9]} 22. Bxd5 {[%clk
0:02:08.2]} 22... Nb4 {[%clk 0:01:58.3]} 23. Bc4 {[%clk 0:01:59.1]} 23... Rxc4
{[%clk 0:01:57]} 24. Be3 {[%clk 0:01:49.5]} 24... Na2+ {[%clk 0:01:50.7]} 25.
Kd2 {[%clk 0:01:49.1]} 25... Bxa3 {[%clk 0:01:47.2]} 26. bxa3 {[%clk 0:01:45.6]}
26... Rd8+ {[%clk 0:01:47.4]} 27. Ke2 {[%clk 0:01:44.8]} 27... Nxc3+ {[%clk
0:01:46.4]} 0-1

[Event "*** Titled Tuesday Blitz"]
[Site "Chess.com"]
[Date "2020.04.28"]
[Round "4"]
[White "MateSchmate"]
[Black "indfraeng"]
[Result "1-0"]
[WhiteElo "2465"]
[BlackElo "2277"]
[TimeControl "180+1"]
[EndTime "10:36:51 PDT"]
[Termination "MateSchmate won by resignation"]

1. e4 {[%clk 0:03:00.9]} 1... e5 {[%clk 0:03:00.4]} 2. Nf3 {[%clk 0:02:56.6]}
2... Nc6 {[%clk 0:03:00.5]} 3. d4 {[%clk 0:02:56.5]} 3... exd4 {[%clk
0:02:59.8]} 4. Nxd4 {[%clk 0:02:57.4]} 4... Qf6 {[%clk 0:03:00]} 5. Nxc6 {[%clk
0:02:57.4]} 5... dxc6 {[%clk 0:02:57.7]} 6. Qf3 {[%clk 0:02:58]} 6... Bc5 {[%clk
0:02:55.8]} 7. Bc4 {[%clk 0:02:57.5]} 7... Be6 {[%clk 0:02:53.2]} 8. Bb3 {[%clk
0:02:57.4]} 8... O-O-O {[%clk 0:02:49.6]} 9. Nc3 {[%clk 0:02:57.1]} 9... Bxb3
{[%clk 0:02:45.7]} 10. axb3 {[%clk 0:02:56.4]} 10... Qxf3 {[%clk 0:02:41.2]} 11.
gxf3 {[%clk 0:02:57.3]} 11... Nf6 {[%clk 0:02:41.1]} 12. Be3 {[%clk 0:02:57.4]}
12... Bxe3 {[%clk 0:02:38.4]} 13. fxe3 {[%clk 0:02:58.3]} 13... Rhe8 {[%clk
0:02:37.5]} 14. Rxa7 {[%clk 0:02:57.4]} 14... Kb8 {[%clk 0:02:32]} 15. Ra4
{[%clk 0:02:57.2]} 15... g5 {[%clk 0:02:31.8]} 16. Ke2 {[%clk 0:02:56.7]} 16...
g4 {[%clk 0:02:30.5]} 17. f4 {[%clk 0:02:50.6]} 17... b5 {[%clk 0:02:26.7]} 18.
Rb4 {[%clk 0:02:49]} 18... h5 {[%clk 0:02:15.8]} 19. e5 {[%clk 0:02:41.4]} 19...
Nd5 {[%clk 0:02:15.6]} 20. Nxd5 {[%clk 0:02:41.7]} 20... Rxd5 {[%clk 0:02:16.5]}
21. Rd4 {[%clk 0:02:40.8]} 21... f6 {[%clk 0:02:13.1]} 22. Rxd5 {[%clk
0:02:38.5]} 22... cxd5 {[%clk 0:02:14]} 23. exf6 {[%clk 0:02:38.2]} 23... Rf8
{[%clk 0:02:13.4]} 24. Rd1 {[%clk 0:02:37.4]} 24... c6 {[%clk 0:02:13.7]} 25. c4
{[%clk 0:02:36.7]} 25... bxc4 {[%clk 0:02:13]} 26. bxc4 {[%clk 0:02:37.6]} 26...
dxc4 {[%clk 0:02:12.7]} 27. Rd6 {[%clk 0:02:30.9]} 27... Kc7 {[%clk 0:02:12.3]}
28. Re6 {[%clk 0:02:31.5]} 28... Kd7 {[%clk 0:02:12.1]} 29. f5 {[%clk
0:02:32.1]} 29... Rb8 {[%clk 0:02:06.5]} 30. Kd2 {[%clk 0:02:14.3]} 30... Rxb2+
{[%clk 0:02:03.9]} 31. Kc3 {[%clk 0:02:14.8]} 31... Rf2 {[%clk 0:02:03.3]} 32.
e4 {[%clk 0:02:13.6]} 32... g3 {[%clk 0:01:44.7]} 33. hxg3 {[%clk 0:02:12.1]}
33... h4 {[%clk 0:01:34.9]} 34. f7 {[%clk 0:02:11.1]} 1-0

[Event "*** Titled Tuesday Blitz"]
[Site "Chess.com"]
[Date "2020.04.28"]
[Round "4"]
[White "MPGM"]
[Black "EfM13"]
[Result "0-1"]
[WhiteElo "2503"]
[BlackElo "2296"]
[TimeControl "180+1"]
[EndTime "10:37:14 PDT"]
[Termination "EfM13 won on time"]

1. e4 {[%clk 0:03:00.9]} 1... g6 {[%clk 0:02:59.4]} 2. d4 {[%clk 0:02:55.3]}
2... Bg7 {[%clk 0:02:59.9]} 3. Nf3 {[%clk 0:02:55.9]} 3... d6 {[%clk 0:03:00.2]}
4. Be3 {[%clk 0:02:56.2]} 4... Nf6 {[%clk 0:02:53.1]} 5. Nc3 {[%clk 0:02:54.8]}
5... O-O {[%clk 0:02:53.1]} 6. Qd2 {[%clk 0:02:54.4]} 6... Re8 {[%clk
0:02:38.3]} 7. Bh6 {[%clk 0:02:52.7]} 7... Bh8 {[%clk 0:02:37.3]} 8. O-O-O
{[%clk 0:02:47.4]} 8... c6 {[%clk 0:02:37.1]} 9. h4 {[%clk 0:02:40.7]} 9... Bg4
{[%clk 0:02:35.9]} 10. h5 {[%clk 0:02:38.3]} 10... Nxh5 {[%clk 0:02:29.4]} 0-1

[Event "*** Titled Tuesday Blitz"]
[Site "Chess.com"]
[Date "2020.04.28"]
[Round "4"]
[White "HansCoolNiemann"]
[Black "ChessTraining77"]
[Result "1-0"]
[WhiteElo "2938"]
[BlackElo "2547"]
[TimeControl "180+1"]
[EndTime "10:37:17 PDT"]
[Termination "HansCoolNiemann won by resignation"]

1. d4 {[%clk 0:03:00.9]} 1... d5 {[%clk 0:02:57.7]} 2. Bf4 {[%clk 0:03:00.3]}
2... c5 {[%clk 0:02:54.5]} 3. Nc3 {[%clk 0:03:00.3]} 3... Nf6 {[%clk 0:02:52.2]}
4. e4 {[%clk 0:02:59.8]} 4... dxe4 {[%clk 0:02:50.8]} 5. dxc5 {[%clk 0:02:56.8]}
5... Qxd1+ {[%clk 0:02:41.1]} 6. Rxd1 {[%clk 0:02:57.7]} 6... a6 {[%clk
0:02:40.7]} 7. Nge2 {[%clk 0:02:42.8]} 7... Bf5 {[%clk 0:02:27.9]} 8. Ng3 {[%clk
0:02:42.6]} 8... Bg6 {[%clk 0:02:28]} 9. h4 {[%clk 0:02:41.2]} 9... h6 {[%clk
0:02:26.8]} 10. h5 {[%clk 0:02:40.7]} 10... Bh7 {[%clk 0:02:26.9]} 11. b4 {[%clk
0:02:31.5]} 11... Nc6 {[%clk 0:02:25.1]} 12. a3 {[%clk 0:02:31.5]} 12... e6
{[%clk 0:02:13.8]} 13. Bc4 {[%clk 0:02:28.3]} 13... Be7 {[%clk 0:02:10.9]} 14.
O-O {[%clk 0:02:24.8]} 14... O-O {[%clk 0:02:04.8]} 15. Rfe1 {[%clk 0:02:24.9]}
15... a5 {[%clk 0:02:04.6]} 16. b5 {[%clk 0:02:20.6]} 16... Na7 {[%clk
0:02:02.8]} 17. c6 {[%clk 0:02:19.9]} 17... bxc6 {[%clk 0:01:59]} 18. b6 {[%clk
0:02:17.9]} 18... Nb5 {[%clk 0:01:59]} 19. Bxb5 {[%clk 0:02:12.4]} 19... cxb5
{[%clk 0:01:58.4]} 20. b7 {[%clk 0:02:08.7]} 20... Rab8 {[%clk 0:01:58]} 21.
Bxb8 {[%clk 0:02:07]} 21... Rxb8 {[%clk 0:01:57.3]} 22. Nxb5 {[%clk 0:02:07.9]}
22... Rxb7 {[%clk 0:01:56.2]} 23. Nd6 {[%clk 0:02:05.7]} 23... Rc7 {[%clk
0:01:54.5]} 24. Ndxe4 {[%clk 0:02:04.7]} 24... Rxc2 {[%clk 0:01:51.9]} 25. Nxf6+
{[%clk 0:02:04]} 25... gxf6 {[%clk 0:01:50.2]} 26. Rd7 {[%clk 0:01:58]} 26...
Bxa3 {[%clk 0:01:46.6]} 27. Nf1 {[%clk 0:01:55]} 27... Bb4 {[%clk 0:01:40.6]}
28. Re3 {[%clk 0:01:48.6]} 28... Rc1 {[%clk 0:01:35.5]} 29. Rd8+ {[%clk
0:01:46.2]} 1-0

[Event "*** Titled Tuesday Blitz"]
[Site "Chess.com"]
[Date "2020.04.28"]
[Round "4"]
[White "Lion-Al-Messi"]
[Black "Pawnpusherschessaccademy"]
[Result "1-0"]
[WhiteElo "2432"]
[BlackElo "2227"]
[TimeControl "180+1"]
[EndTime "10:37:20 PDT"]
[Termination "Lion-Al-Messi won by resignation"]

1. d4 {[%clk 0:03:00.9]} 1... Nf6 {[%clk 0:02:59.4]} 2. Nf3 {[%clk 0:02:58.2]}
2... d5 {[%clk 0:02:59]} 3. Nc3 {[%clk 0:02:57.4]} 3... Bf5 {[%clk 0:02:55.4]}
4. Bg5 {[%clk 0:02:51.1]} 4... e6 {[%clk 0:02:52.3]} 5. e3 {[%clk 0:02:50.3]}
5... h6 {[%clk 0:02:49.7]} 6. Bh4 {[%clk 0:02:44.9]} 6... c5 {[%clk 0:02:44.1]}
7. Bb5+ {[%clk 0:02:43.7]} 7... Nbd7 {[%clk 0:02:43.1]} 8. Ne5 {[%clk
0:02:41.9]} 8... g5 {[%clk 0:02:38.4]} 9. Bg3 {[%clk 0:02:40.2]} 9... Be7 {[%clk
0:02:35.3]} 10. O-O {[%clk 0:02:38.2]} 10... a6 {[%clk 0:02:34.6]} 11. Bd3
{[%clk 0:02:37.9]} 11... c4 {[%clk 0:02:16.1]} 12. Bxf5 {[%clk 0:02:35.4]} 12...
exf5 {[%clk 0:02:17]} 13. Qf3 {[%clk 0:02:32.6]} 13... f4 {[%clk 0:02:01.2]} 14.
exf4 {[%clk 0:02:31.7]} 14... g4 {[%clk 0:01:59]} 15. Nxg4 {[%clk 0:02:29]}
15... Nxg4 {[%clk 0:01:58.1]} 16. Qxg4 {[%clk 0:02:29.9]} 16... Nf6 {[%clk
0:01:56.7]} 17. Qf5 {[%clk 0:02:29.9]} 17... Kf8 {[%clk 0:01:22.8]} 18. Rfe1
{[%clk 0:02:28.5]} 18... Rg8 {[%clk 0:01:21.5]} 19. Re5 {[%clk 0:02:26.7]} 19...
Bd6 {[%clk 0:01:16.6]} 20. Rae1 {[%clk 0:02:23]} 20... Bxe5 {[%clk 0:01:14]} 21.
dxe5 {[%clk 0:02:21]} 21... d4 {[%clk 0:00:50.5]} 22. exf6 {[%clk 0:02:07.1]}
1-0

[Event "*** Titled Tuesday Blitz"]
[Site "Chess.com"]
[Date "2020.04.28"]
[Round "4"]
[White "Spring199"]
[Black "APotatoInthekitchen"]
[Result "1-0"]
[WhiteElo "2393"]
[BlackElo "2151"]
[TimeControl "180+1"]
[EndTime "10:37:22 PDT"]
[Termination "Spring199 won by resignation"]

1. d4 {[%clk 0:03:00.9]} 1... Nf6 {[%clk 0:02:56.4]} 2. c4 {[%clk 0:03:00.6]}
2... g6 {[%clk 0:02:50.3]} 3. Nc3 {[%clk 0:03:00.1]} 3... Bg7 {[%clk 0:02:50.2]}
4. e4 {[%clk 0:02:59.8]} 4... d6 {[%clk 0:02:50.2]} 5. Nge2 {[%clk 0:03:00.1]}
5... O-O {[%clk 0:02:48]} 6. Ng3 {[%clk 0:02:59.8]} 6... e5 {[%clk 0:02:41]} 7.
d5 {[%clk 0:02:59.4]} 7... a5 {[%clk 0:02:40.7]} 8. h4 {[%clk 0:02:58.5]} 8...
Na6 {[%clk 0:02:30.1]} 9. h5 {[%clk 0:02:56]} 9... Nc5 {[%clk 0:01:54.5]} 10.
Be2 {[%clk 0:02:53.8]} 10... gxh5 {[%clk 0:01:35.5]} 11. Bxh5 {[%clk 0:02:47.6]}
11... Bd7 {[%clk 0:01:25.4]} 12. Bg5 {[%clk 0:02:46.2]} 12... h6 {[%clk
0:00:58.4]} 13. Bh4 {[%clk 0:02:37]} 13... Qc8 {[%clk 0:00:57.8]} 14. Qd2 {[%clk
0:02:25.8]} 14... Bg4 {[%clk 0:00:54.4]} 15. Bxf6 {[%clk 0:02:16.4]} 15... Bxf6
{[%clk 0:00:47.4]} 16. Qxh6 {[%clk 0:02:12.2]} 16... Bg5 {[%clk 0:00:36]} 17.
Qxg5+ {[%clk 0:02:09.7]} 1-0

[Event "*** Titled Tuesday Blitz"]
[Site "Chess.com"]
[Date "2020.04.28"]
[Round "4"]
[White "Gromes7"]
[Black "LogoCzar"]
[Result "1-0"]
[WhiteElo "2093"]
[BlackElo "2366"]
[TimeControl "180+1"]
[EndTime "10:37:24 PDT"]
[Termination "Gromes7 won by checkmate"]

1. d4 {[%clk 0:03:00.9]} 1... d5 {[%clk 0:02:59.2]} 2. g3 {[%clk 0:03:00.8]}
2... c5 {[%clk 0:02:57.7]} 3. Bg2 {[%clk 0:03:01.1]} 3... cxd4 {[%clk
0:02:57.8]} 4. Nf3 {[%clk 0:03:01.3]} 4... f6 {[%clk 0:02:55.9]} 5. O-O {[%clk
0:03:00.5]} 5... e5 {[%clk 0:02:55.7]} 6. c3 {[%clk 0:03:01]} 6... dxc3 {[%clk
0:02:55.5]} 7. Nxc3 {[%clk 0:03:00.7]} 7... Be6 {[%clk 0:02:55.4]} 8. Nd2 {[%clk
0:02:44.2]} 8... Nc6 {[%clk 0:02:53.6]} 9. Nb3 {[%clk 0:02:43.4]} 9... d4 {[%clk
0:02:52.2]} 10. Ne4 {[%clk 0:02:42]} 10... Bd5 {[%clk 0:02:44.6]} 11. e3 {[%clk
0:02:35.4]} 11... dxe3 {[%clk 0:02:36.9]} 12. Bxe3 {[%clk 0:02:33]} 12... Be6
{[%clk 0:02:35.3]} 13. Qe2 {[%clk 0:02:23.1]} 13... Nge7 {[%clk 0:02:34.6]} 14.
Nec5 {[%clk 0:02:15.7]} 14... Bd5 {[%clk 0:02:33]} 15. Rfd1 {[%clk 0:02:14.2]}
15... b6 {[%clk 0:02:31.7]} 16. Ne6 {[%clk 0:02:07.7]} 16... Qd7 {[%clk
0:02:27.9]} 17. Nxf8 {[%clk 0:01:57.6]} 17... Kxf8 {[%clk 0:02:27.2]} 18. Rd2
{[%clk 0:01:32.9]} 18... Qe6 {[%clk 0:02:25.9]} 19. Rad1 {[%clk 0:01:26.6]}
19... Bxg2 {[%clk 0:02:24.3]} 20. Kxg2 {[%clk 0:01:26]} 20... Kf7 {[%clk
0:02:24.1]} 21. Rd6 {[%clk 0:01:23.1]} 21... Qf5 {[%clk 0:02:20.7]} 22. Qc4+
{[%clk 0:01:21.5]} 22... Kg6 {[%clk 0:02:19.9]} 23. g4 {[%clk 0:01:12.7]} 23...
Qc8 {[%clk 0:02:11.6]} 24. h4 {[%clk 0:01:00.4]} 24... Nd4 {[%clk 0:01:55]} 25.
h5# {[%clk 0:00:56.4]} 1-0

[Event "*** Titled Tuesday Blitz"]
[Site "Chess.com"]
[Date "2020.04.28"]
[Round "4"]
[White "FrogMist"]
[Black "Carnivoras"]
[Result "0-1"]
[WhiteElo "2412"]
[BlackElo "2640"]
[TimeControl "180+1"]
[EndTime "10:37:34 PDT"]
[Termination "Carnivoras won by resignation"]

1. e4 {[%clk 0:03:00.9]} 1... e5 {[%clk 0:02:59]} 2. Nf3 {[%clk 0:03:00.6]} 2...
d6 {[%clk 0:02:58.9]} 3. d4 {[%clk 0:02:59.2]} 3... exd4 {[%clk 0:02:59.2]} 4.
Nxd4 {[%clk 0:02:59]} 4... Nf6 {[%clk 0:02:59.6]} 5. Nc3 {[%clk 0:02:58.9]} 5...
Be7 {[%clk 0:03:00.2]} 6. Bf4 {[%clk 0:02:58.2]} 6... O-O {[%clk 0:03:00.5]} 7.
Be2 {[%clk 0:02:57.7]} 7... Nc6 {[%clk 0:03:00.6]} 8. h3 {[%clk 0:02:43.4]} 8...
Bd7 {[%clk 0:02:58.9]} 9. Qd2 {[%clk 0:02:41.1]} 9... a6 {[%clk 0:02:57.5]} 10.
O-O-O {[%clk 0:02:31.7]} 10... b5 {[%clk 0:02:57.2]} 11. Nxc6 {[%clk 0:02:18.5]}
11... Bxc6 {[%clk 0:02:55.5]} 12. Bf3 {[%clk 0:02:19.1]} 12... b4 {[%clk
0:02:32]} 13. Nd5 {[%clk 0:02:18.8]} 13... Bxd5 {[%clk 0:02:29.1]} 14. exd5
{[%clk 0:02:19.7]} 14... a5 {[%clk 0:02:28.3]} 15. Rhe1 {[%clk 0:02:13.4]} 15...
Nd7 {[%clk 0:02:26.3]} 16. Kb1 {[%clk 0:02:11.6]} 16... Bf6 {[%clk 0:02:23.9]}
17. Bg4 {[%clk 0:01:57.6]} 17... Nc5 {[%clk 0:02:19.9]} 18. Re2 {[%clk
0:01:41.1]} 18... Na4 {[%clk 0:02:14.7]} 19. Rde1 {[%clk 0:01:09.4]} 19... Bxb2
{[%clk 0:02:08.8]} 20. Re7 {[%clk 0:00:59.3]} 20... Bc3 {[%clk 0:01:52.2]} 21.
Qe2 {[%clk 0:00:59.2]} 21... Bxe1 {[%clk 0:01:46.7]} 22. Qxe1 {[%clk 0:01:00.1]}
22... Nc3+ {[%clk 0:01:46.7]} 23. Ka1 {[%clk 0:00:57]} 23... Nxd5 {[%clk
0:01:44.9]} 0-1

[Event "*** Titled Tuesday Blitz"]
[Site "Chess.com"]
[Date "2020.04.28"]
[Round "4"]
[White "Nikolaj_6"]
[Black "SmirnovAlexandrA"]
[Result "1-0"]
[WhiteElo "2609"]
[BlackElo "2350"]
[TimeControl "180+1"]
[EndTime "10:37:34 PDT"]
[Termination "Nikolaj_6 won by checkmate"]

1. e4 {[%clk 0:03:00.9]} 1... c5 {[%clk 0:02:57.2]} 2. Nf3 {[%clk 0:03:00.8]}
2... d6 {[%clk 0:02:57]} 3. d4 {[%clk 0:03:00.3]} 3... cxd4 {[%clk 0:02:57.9]}
4. Nxd4 {[%clk 0:03:00.7]} 4... Nf6 {[%clk 0:02:58.3]} 5. Nc3 {[%clk 0:03:01.2]}
5... a6 {[%clk 0:02:58.7]} 6. Bg5 {[%clk 0:03:00.9]} 6... e6 {[%clk 0:02:58.8]}
7. f4 {[%clk 0:03:00.9]} 7... Be7 {[%clk 0:02:58]} 8. Qf3 {[%clk 0:03:00.5]}
8... h6 {[%clk 0:02:56.8]} 9. Bh4 {[%clk 0:03:00]} 9... Qc7 {[%clk 0:02:55.3]}
10. O-O-O {[%clk 0:02:59.7]} 10... Nbd7 {[%clk 0:02:55.1]} 11. Be2 {[%clk
0:02:59.3]} 11... b5 {[%clk 0:02:54.8]} 12. Bxf6 {[%clk 0:02:56.2]} 12... gxf6
{[%clk 0:02:54.1]} 13. Qh5 {[%clk 0:02:44.8]} 13... Nb6 {[%clk 0:02:46.1]} 14.
f5 {[%clk 0:02:41.3]} 14... e5 {[%clk 0:02:42.5]} 15. Ne6 {[%clk 0:02:41.4]}
15... Bxe6 {[%clk 0:02:38.3]} 16. fxe6 {[%clk 0:02:41.4]} 16... Bf8 {[%clk
0:02:35.9]} 17. exf7+ {[%clk 0:02:18.9]} 17... Qxf7 {[%clk 0:02:34.4]} 18. Qh3
{[%clk 0:02:18.7]} 18... h5 {[%clk 0:02:28.2]} 19. Kb1 {[%clk 0:02:16.7]} 19...
h4 {[%clk 0:01:28.4]} 20. Rhf1 {[%clk 0:02:13.2]} 20... Qe7 {[%clk 0:01:22]} 21.
Bg4 {[%clk 0:02:07.7]} 21... Kd8 {[%clk 0:01:16.9]} 22. Qe3 {[%clk 0:01:47.5]}
22... Kc7 {[%clk 0:01:15.5]} 23. a4 {[%clk 0:01:43.6]} 23... b4 {[%clk
0:01:09.3]} 24. a5 {[%clk 0:01:41.3]} 24... bxc3 {[%clk 0:01:07.2]} 25. Qxb6#
{[%clk 0:01:39.3]} 1-0

[Event "*** Titled Tuesday Blitz"]
[Site "Chess.com"]
[Date "2020.04.28"]
[Round "4"]
[White "Popopuiyt"]
[Black "AustrianFalcon"]
[Result "0-1"]
[WhiteElo "2344"]
[BlackElo "2571"]
[TimeControl "180+1"]
[EndTime "10:37:34 PDT"]
[Termination "AustrianFalcon won by resignation"]

1. d4 {[%clk 0:03:00.9]} 1... g6 {[%clk 0:02:59.4]} 2. c4 {[%clk 0:03:00.2]}
2... Bg7 {[%clk 0:02:58.9]} 3. e4 {[%clk 0:03:00.5]} 3... d6 {[%clk 0:02:58.3]}
4. Nc3 {[%clk 0:03:00.5]} 4... e5 {[%clk 0:02:57.6]} 5. Nge2 {[%clk 0:02:59.2]}
5... Nd7 {[%clk 0:02:55]} 6. Be3 {[%clk 0:02:39.4]} 6... Ne7 {[%clk 0:02:51.2]}
7. h4 {[%clk 0:02:38.5]} 7... f5 {[%clk 0:02:43.6]} 8. f3 {[%clk 0:02:26.4]}
8... O-O {[%clk 0:02:35.9]} 9. Qd2 {[%clk 0:02:21]} 9... Nf6 {[%clk 0:02:32.8]}
10. O-O-O {[%clk 0:01:59.1]} 10... f4 {[%clk 0:02:28.6]} 11. Bf2 {[%clk
0:01:58.1]} 11... Nh5 {[%clk 0:02:28.6]} 12. dxe5 {[%clk 0:01:49.6]} 12... Bxe5
{[%clk 0:02:25.9]} 13. c5 {[%clk 0:01:50]} 13... Be6 {[%clk 0:02:23]} 14. Nd4
{[%clk 0:01:49.7]} 14... Bf7 {[%clk 0:02:21]} 15. cxd6 {[%clk 0:01:48.2]} 15...
Qxd6 {[%clk 0:02:17.6]} 16. Kb1 {[%clk 0:01:39.9]} 16... Rad8 {[%clk 0:02:12.2]}
17. Qc2 {[%clk 0:01:09.3]} 17... Qc5 {[%clk 0:02:08.2]} 18. Nb3 {[%clk
0:00:24.3]} 18... Rxd1+ {[%clk 0:02:09.1]} 19. Qxd1 {[%clk 0:00:25]} 0-1

[Event "*** Titled Tuesday Blitz"]
[Site "Chess.com"]
[Date "2020.04.28"]
[Round "4"]
[White "Mischuk_D"]
[Black "IljaJoke"]
[Result "0-1"]
[WhiteElo "2652"]
[BlackElo "2486"]
[TimeControl "180+1"]
[EndTime "10:37:40 PDT"]
[Termination "IljaJoke won by resignation"]

1. e4 {[%clk 0:03:00.9]} 1... e5 {[%clk 0:03:00]} 2. Nf3 {[%clk 0:03:00.8]} 2...
Nc6 {[%clk 0:03:00.5]} 3. Nc3 {[%clk 0:03:01.3]} 3... Nf6 {[%clk 0:03:00.6]} 4.
d3 {[%clk 0:03:01.7]} 4... d5 {[%clk 0:02:58.8]} 5. exd5 {[%clk 0:02:58.7]} 5...
Nxd5 {[%clk 0:02:59.7]} 6. Be2 {[%clk 0:02:58.6]} 6... Bc5 {[%clk 0:02:59.9]} 7.
O-O {[%clk 0:02:58.4]} 7... O-O {[%clk 0:03:00.1]} 8. Bd2 {[%clk 0:02:54.4]}
8... a6 {[%clk 0:02:56.4]} 9. Re1 {[%clk 0:02:54.1]} 9... Re8 {[%clk 0:02:55.2]}
10. Nxd5 {[%clk 0:02:52.3]} 10... Qxd5 {[%clk 0:02:54.8]} 11. Bf1 {[%clk
0:02:50.9]} 11... Bg4 {[%clk 0:02:54.5]} 12. c3 {[%clk 0:02:50.6]} 12... Rad8
{[%clk 0:02:53.4]} 13. Be3 {[%clk 0:02:44]} 13... Bxe3 {[%clk 0:02:47.9]} 14.
fxe3 {[%clk 0:02:38.8]} 14... e4 {[%clk 0:02:47.2]} 15. dxe4 {[%clk 0:02:37.9]}
15... Qxe4 {[%clk 0:02:44]} 16. Qe2 {[%clk 0:02:37.6]} 16... Ne5 {[%clk
0:02:42.7]} 17. Ng5 {[%clk 0:02:15.1]} 17... Qf5 {[%clk 0:02:34.3]} 18. Nf3
{[%clk 0:01:42.4]} 18... Bxf3 {[%clk 0:02:34.1]} 19. gxf3 {[%clk 0:01:43.3]}
19... Rd2 {[%clk 0:02:34.2]} 20. f4 {[%clk 0:01:28.2]} 20... Rxe2 {[%clk
0:02:32.3]} 21. Rxe2 {[%clk 0:01:28.4]} 21... Nc4 {[%clk 0:02:22]} 22. Rae1
{[%clk 0:01:27.3]} 22... h5 {[%clk 0:02:12.2]} 23. Bg2 {[%clk 0:01:27.3]} 23...
Nd6 {[%clk 0:02:08]} 24. Rd1 {[%clk 0:01:24.2]} 24... Qg4 {[%clk 0:02:01.2]} 25.
Rde1 {[%clk 0:01:19.5]} 25... h4 {[%clk 0:02:01.1]} 26. h3 {[%clk 0:01:19.6]}
26... Qg3 {[%clk 0:02:01.4]} 27. Rf1 {[%clk 0:01:19.1]} 27... Ne4 {[%clk
0:01:56.4]} 28. Rf3 {[%clk 0:01:19.2]} 28... Qg6 {[%clk 0:01:55.8]} 29. f5
{[%clk 0:01:19.3]} 29... Qg5 {[%clk 0:01:56.2]} 30. Rf4 {[%clk 0:01:19.4]} 30...
Ng3 {[%clk 0:01:42.6]} 31. Re1 {[%clk 0:01:18.8]} 31... Qxf4 {[%clk 0:01:42.2]}
32. exf4 {[%clk 0:01:18.8]} 32... Rxe1+ {[%clk 0:01:42.2]} 33. Kf2 {[%clk
0:01:19.7]} 33... Rb1 {[%clk 0:01:42.4]} 0-1

[Event "*** Titled Tuesday Blitz"]
[Site "Chess.com"]
[Date "2020.04.28"]
[Round "4"]
[White "BikingBrian"]
[Black "kingofthenil"]
[Result "1-0"]
[WhiteElo "2330"]
[BlackElo "2456"]
[TimeControl "180+1"]
[EndTime "10:37:41 PDT"]
[Termination "BikingBrian won by checkmate"]

1. d4 {[%clk 0:03:00.9]} 1... Nf6 {[%clk 0:02:59.1]} 2. Bg5 {[%clk 0:03:00.2]}
2... d5 {[%clk 0:02:57.5]} 3. Nd2 {[%clk 0:02:59.2]} 3... c5 {[%clk 0:02:56.2]}
4. Bxf6 {[%clk 0:02:59.2]} 4... gxf6 {[%clk 0:02:55.5]} 5. dxc5 {[%clk
0:02:59.4]} 5... e5 {[%clk 0:02:53.9]} 6. e4 {[%clk 0:02:59]} 6... Bxc5 {[%clk
0:02:48.6]} 7. exd5 {[%clk 0:02:51]} 7... Qxd5 {[%clk 0:02:42.4]} 8. Ngf3 {[%clk
0:02:50.1]} 8... Nc6 {[%clk 0:02:36]} 9. Bc4 {[%clk 0:02:49.8]} 9... Qd8 {[%clk
0:02:31.5]} 10. Qe2 {[%clk 0:02:49.8]} 10... Be6 {[%clk 0:02:29.9]} 11. Rd1
{[%clk 0:02:44.7]} 11... Qe7 {[%clk 0:02:20.4]} 12. Ne4 {[%clk 0:02:37.1]} 12...
f5 {[%clk 0:02:00]} 13. Nxc5 {[%clk 0:02:32.8]} 13... Qxc5 {[%clk 0:01:58.4]}
14. Bxe6 {[%clk 0:02:29.8]} 14... fxe6 {[%clk 0:01:59.3]} 15. Ng5 {[%clk
0:02:20.8]} 15... Ke7 {[%clk 0:01:49.6]} 16. Qh5 {[%clk 0:02:16.3]} 16... Raf8
{[%clk 0:01:46.3]} 17. Qh6 {[%clk 0:02:00.5]} 17... Nd8 {[%clk 0:01:23]} 18.
Rxd8 {[%clk 0:01:38.1]} 18... Qb4+ {[%clk 0:00:58.3]} 19. Rd2 {[%clk 0:01:35.7]}
19... Rhg8 {[%clk 0:00:49.8]} 20. Qxe6# {[%clk 0:01:33.7]} 1-0